Workbook

Sheet Display
P1: Current | Q1: Updated
P2: Time | Q2: Time
B3: Symbol | C3: Description | D3: Last | E3: NC | F3: %NC | G3: %NC | H3: Bid Vol | I3: Bid | J3: Ask | K3: Ask Vol | L3: Ask Vol | M3: High | N3: Low | O3: Volume | P3: =MOD(RTD("cqg.rtd", ,"SystemInfo", "Linetime"),1) -> 09:15:32 | Q3: 09:14:43
B4: =Rank!F4 -> S.TSLA | C4: =IF(B4="","",RTD("cqg.rtd", ,"ContractData",B4, "LongDescription",, "T")) -> Tesla Inc. | D4: =IF(B4="","",RTD("cqg.rtd", ,"ContractData", B4, "LastQuoteToday",, "T")) -> 344.7 | E4: =IF(B4="","",RTD("cqg.rtd", ,"ContractData",B4, "NetLastQuoteToday",, "T")) -> 2.61 | F4: =IFERROR(RTD("cqg.rtd", ,"ContractData",B4, "PerCentNetLastQuote",, "T")/100,"") -> 0.007629571165 | G4: =IFERROR(RTD("cqg.rtd", ,"ContractData",B4, "PerCentNetLastQuote",, "T")/100,"") -> 0.007629571165 | H4: =IF(B4="","",RTD("cqg.rtd", ,"ContractData",B4, "MT_LastBidVolume",, "T")) -> 100 | I4: =IF(B4="","",RTD("cqg.rtd", ,"ContractData", B4, "Bid",, "T")) -> 344.53 | J4: =IF(B4="","",RTD("cqg.rtd", ,"ContractData", B4, "Ask",, "T")) -> 344.6 | K4: =IF(B4="","",RTD("cqg.rtd", ,"ContractData",B4, "MT_LastAskVolume",, "T")) -> 200 | L4: =IF(B4="","",RTD("cqg.rtd", ,"ContractData",B4, "Open",, "T")) -> 347.87 | M4: =IF(B4="","",RTD("cqg.rtd", ,"ContractData",B4, "High",, "T")) -> 354.57 | N4: =IF(B4="","",RTD("cqg.rtd", ,"ContractData",B4, "Low",, "T")) -> 342.86 | O4: =IF(B4="","",RTD("cqg.rtd", ,"ContractData",B4, "T_CVol",, "T")) -> 35122120 | P4: News | Q4: =IF(B4="","","https://finance.yahoo.com/quote/"&RIGHT(B4,LEN(B4)-FIND(".",B4))) -> https://finance.yahoo.com/quote/TSLA
B5: =Rank!F5 -> S.COST | C5: =IF(B5="","",RTD("cqg.rtd", ,"ContractData",B5, "LongDescription",, "T")) -> Costco Wholesale Corp | D5: =IF(B5="","",RTD("cqg.rtd", ,"ContractData", B5, "LastQuoteToday",, "T")) -> 1033.39 | E5: =IF(B5="","",RTD("cqg.rtd", ,"ContractData",B5, "NetLastQuoteToday",, "T")) -> -0.95 | F5: =IFERROR(RTD("cqg.rtd", ,"ContractData",B5, "PerCentNetLastQuote",, "T")/100,"") -> -0.0009184600808 | G5: =IFERROR(RTD("cqg.rtd", ,"ContractData",B5, "PerCentNetLastQuote",, "T")/100,"") -> -0.0009184600808 | H5: =IF(B5="","",RTD("cqg.rtd", ,"ContractData",B5, "MT_LastBidVolume",, "T")) -> 300 | I5: =IF(B5="","",RTD("cqg.rtd", ,"ContractData", B5, "Bid",, "T")) -> 1032.89 | J5: =IF(B5="","",RTD("cqg.rtd", ,"ContractData", B5, "Ask",, "T")) -> 1033.39 | K5: =IF(B5="","",RTD("cqg.rtd", ,"ContractData",B5, "MT_LastAskVolume",, "T")) -> 400 | L5: =IF(B5="","",RTD("cqg.rtd", ,"ContractData",B5, "Open",, "T")) -> 1030.01 | M5: =IF(B5="","",RTD("cqg.rtd", ,"ContractData",B5, "High",, "T")) -> 1036.84 | N5: =IF(B5="","",RTD("cqg.rtd", ,"ContractData",B5, "Low",, "T")) -> 1030.01 | O5: =IF(B5="","",RTD("cqg.rtd", ,"ContractData",B5, "T_CVol",, "T")) -> 208024 | P5: News | Q5: =IF(B5="","","https://finance.yahoo.com/quote/"&RIGHT(B5,LEN(B5)-FIND(".",B5))) -> https://finance.yahoo.com/quote/COST
B6: =Rank!F6 -> S.GOOGL | C6: =IF(B6="","",RTD("cqg.rtd", ,"ContractData",B6, "LongDescription",, "T")) -> Alphabet, Inc. Class A | D6: =IF(B6="","",RTD("cqg.rtd", ,"ContractData", B6, "LastQuoteToday",, "T")) -> 166.02 | E6: =IF(B6="","",RTD("cqg.rtd", ,"ContractData",B6, "NetLastQuoteToday",, "T")) -> -0.52 | F6: =IFERROR(RTD("cqg.rtd", ,"ContractData",B6, "PerCentNetLastQuote",, "T")/100,"") -> -0.003122373003 | G6: =IFERROR(RTD("cqg.rtd", ,"ContractData",B6, "PerCentNetLastQuote",, "T")/100,"") -> -0.003122373003 | H6: =IF(B6="","",RTD("cqg.rtd", ,"ContractData",B6, "MT_LastBidVolume",, "T")) -> 200 | I6: =IF(B6="","",RTD("cqg.rtd", ,"ContractData", B6, "Bid",, "T")) -> 166.01 | J6: =IF(B6="","",RTD("cqg.rtd", ,"ContractData", B6, "Ask",, "T")) -> 166.02 | K6: =IF(B6="","",RTD("cqg.rtd", ,"ContractData",B6, "MT_LastAskVolume",, "T")) -> 100 | L6: =IF(B6="","",RTD("cqg.rtd", ,"ContractData",B6, "Open",, "T")) -> 166.43 | M6: =IF(B6="","",RTD("cqg.rtd", ,"ContractData",B6, "High",, "T")) -> 167.54 | N6: =IF(B6="","",RTD("cqg.rtd", ,"ContractData",B6, "Low",, "T")) -> 165.44 | O6: =IF(B6="","",RTD("cqg.rtd", ,"ContractData",B6, "T_CVol",, "T")) -> 7439941 | P6: News | Q6: https://finance.yahoo.com/quote/GOOGL
B7: =Rank!F7 -> S.AAPL | C7: =IF(B7="","",RTD("cqg.rtd", ,"ContractData",B7, "LongDescription",, "T")) -> Apple Inc | D7: =IF(B7="","",RTD("cqg.rtd", ,"ContractData", B7, "LastQuoteToday",, "T")) -> 208.06 | E7: =IF(B7="","",RTD("cqg.rtd", ,"ContractData",B7, "NetLastQuoteToday",, "T")) -> -0.72 | F7: =IFERROR(RTD("cqg.rtd", ,"ContractData",B7, "PerCentNetLastQuote",, "T")/100,"") -> -0.003448606188 | G7: =IFERROR(RTD("cqg.rtd", ,"ContractData",B7, "PerCentNetLastQuote",, "T")/100,"") -> -0.003448606188 | H7: =IF(B7="","",RTD("cqg.rtd", ,"ContractData",B7, "MT_LastBidVolume",, "T")) -> 200 | I7: =IF(B7="","",RTD("cqg.rtd", ,"ContractData", B7, "Bid",, "T")) -> 208.04 | J7: =IF(B7="","",RTD("cqg.rtd", ,"ContractData", B7, "Ask",, "T")) -> 208.06 | K7: =IF(B7="","",RTD("cqg.rtd", ,"ContractData",B7, "MT_LastAskVolume",, "T")) -> 100 | L7: =IF(B7="","",RTD("cqg.rtd", ,"ContractData",B7, "Open",, "T")) -> 207.67 | M7: =IF(B7="","",RTD("cqg.rtd", ,"ContractData",B7, "High",, "T")) -> 208.3 | N7: =IF(B7="","",RTD("cqg.rtd", ,"ContractData",B7, "Low",, "T")) -> 206.47 | O7: =IF(B7="","",RTD("cqg.rtd", ,"ContractData",B7, "T_CVol",, "T")) -> 8716067 | P7: News | Q7: https://finance.yahoo.com/quote/AAPL
B8: =Rank!F8 -> S.META | C8: =IF(B8="","",RTD("cqg.rtd", ,"ContractData",B8, "LongDescription",, "T")) -> Meta Platforms, Inc. | D8: =IF(B8="","",RTD("cqg.rtd", ,"ContractData", B8, "LastQuoteToday",, "T")) -> 636.96 | E8: =IF(B8="","",RTD("cqg.rtd", ,"ContractData",B8, "NetLastQuoteToday",, "T")) -> -3.47 | F8: =IFERROR(RTD("cqg.rtd", ,"ContractData",B8, "PerCentNetLastQuote",, "T")/100,"") -> -0.005418234624 | G8: =IFERROR(RTD("cqg.rtd", ,"ContractData",B8, "PerCentNetLastQuote",, "T")/100,"") -> -0.005418234624 | H8: =IF(B8="","",RTD("cqg.rtd", ,"ContractData",B8, "MT_LastBidVolume",, "T")) -> 100 | I8: =IF(B8="","",RTD("cqg.rtd", ,"ContractData", B8, "Bid",, "T")) -> 636.79 | J8: =IF(B8="","",RTD("cqg.rtd", ,"ContractData", B8, "Ask",, "T")) -> 637.13 | K8: =IF(B8="","",RTD("cqg.rtd", ,"ContractData",B8, "MT_LastAskVolume",, "T")) -> 100 | L8: =IF(B8="","",RTD("cqg.rtd", ,"ContractData",B8, "Open",, "T")) -> 636.01 | M8: =IF(B8="","",RTD("cqg.rtd", ,"ContractData",B8, "High",, "T")) -> 639.25 | N8: =IF(B8="","",RTD("cqg.rtd", ,"ContractData",B8, "Low",, "T")) -> 635.1 | O8: =IF(B8="","",RTD("cqg.rtd", ,"ContractData",B8, "T_CVol",, "T")) -> 1342008 | P8: News | Q8: https://finance.yahoo.com/quote/META
B9: =Rank!F9 -> S.AVGO | C9: =IF(B9="","",RTD("cqg.rtd", ,"ContractData",B9, "LongDescription",, "T")) -> Broadcom Inc. | D9: =IF(B9="","",RTD("cqg.rtd", ,"ContractData", B9, "LastQuoteToday",, "T")) -> 229 | E9: =IF(B9="","",RTD("cqg.rtd", ,"ContractData",B9, "NetLastQuoteToday",, "T")) -> -1.63 | F9: =IFERROR(RTD("cqg.rtd", ,"ContractData",B9, "PerCentNetLastQuote",, "T")/100,"") -> -0.00706759745 | G9: =IFERROR(RTD("cqg.rtd", ,"ContractData",B9, "PerCentNetLastQuote",, "T")/100,"") -> -0.00706759745 | H9: =IF(B9="","",RTD("cqg.rtd", ,"ContractData",B9, "MT_LastBidVolume",, "T")) -> 300 | I9: =IF(B9="","",RTD("cqg.rtd", ,"ContractData", B9, "Bid",, "T")) -> 228.94 | J9: =IF(B9="","",RTD("cqg.rtd", ,"ContractData", B9, "Ask",, "T")) -> 229.07 | K9: =IF(B9="","",RTD("cqg.rtd", ,"ContractData",B9, "MT_LastAskVolume",, "T")) -> 300 | L9: =IF(B9="","",RTD("cqg.rtd", ,"ContractData",B9, "Open",, "T")) -> 226.49 | M9: =IF(B9="","",RTD("cqg.rtd", ,"ContractData",B9, "High",, "T")) -> 230.07 | N9: =IF(B9="","",RTD("cqg.rtd", ,"ContractData",B9, "Low",, "T")) -> 226.34 | O9: =IF(B9="","",RTD("cqg.rtd", ,"ContractData",B9, "T_CVol",, "T")) -> 2251305 | P9: News | Q9: https://finance.yahoo.com/quote/AVGO
B10: =Rank!F10 -> S.NFLX | C10: =IF(B10="","",RTD("cqg.rtd", ,"ContractData",B10, "LongDescription",, "T")) -> Netflix Inc | D10: =IF(B10="","",RTD("cqg.rtd", ,"ContractData", B10, "LastQuoteToday",, "T")) -> 1181.54 | E10: =IF(B10="","",RTD("cqg.rtd", ,"ContractData",B10, "NetLastQuoteToday",, "T")) -> -10.1 | F10: =IFERROR(RTD("cqg.rtd", ,"ContractData",B10, "PerCentNetLastQuote",, "T")/100,"") -> -0.008475714142 | G10: =IFERROR(RTD("cqg.rtd", ,"ContractData",B10, "PerCentNetLastQuote",, "T")/100,"") -> -0.008475714142 | H10: =IF(B10="","",RTD("cqg.rtd", ,"ContractData",B10, "MT_LastBidVolume",, "T")) -> 100 | I10: =IF(B10="","",RTD("cqg.rtd", ,"ContractData", B10, "Bid",, "T")) -> 1180.64 | J10: =IF(B10="","",RTD("cqg.rtd", ,"ContractData", B10, "Ask",, "T")) -> 1181.86 | K10: =IF(B10="","",RTD("cqg.rtd", ,"ContractData",B10, "MT_LastAskVolume",, "T")) -> 100 | L10: =IF(B10="","",RTD("cqg.rtd", ,"ContractData",B10, "Open",, "T")) -> 1186.79 | M10: =IF(B10="","",RTD("cqg.rtd", ,"ContractData",B10, "High",, "T")) -> 1191 | N10: =IF(B10="","",RTD("cqg.rtd", ,"ContractData",B10, "Low",, "T")) -> 1179.02 | O10: =IF(B10="","",RTD("cqg.rtd", ,"ContractData",B10, "T_CVol",, "T")) -> 453308 | P10: News | Q10: https://finance.yahoo.com/quote/NFLX
B11: =Rank!F11 -> S.MSFT | C11: =IF(B11="","",RTD("cqg.rtd", ,"ContractData",B11, "LongDescription",, "T")) -> Microsoft Corporation | D11: =IF(B11="","",RTD("cqg.rtd", ,"ContractData", B11, "LastQuoteToday",, "T")) -> 454.98 | E11: =IF(B11="","",RTD("cqg.rtd", ,"ContractData",B11, "NetLastQuoteToday",, "T")) -> -3.89 | F11: =IFERROR(RTD("cqg.rtd", ,"ContractData",B11, "PerCentNetLastQuote",, "T")/100,"") -> -0.008477346525 | G11: =IFERROR(RTD("cqg.rtd", ,"ContractData",B11, "PerCentNetLastQuote",, "T")/100,"") -> -0.008477346525 | H11: =IF(B11="","",RTD("cqg.rtd", ,"ContractData",B11, "MT_LastBidVolume",, "T")) -> 100 | I11: =IF(B11="","",RTD("cqg.rtd", ,"ContractData", B11, "Bid",, "T")) -> 454.84 | J11: =IF(B11="","",RTD("cqg.rtd", ,"ContractData", B11, "Ask",, "T")) -> 454.98 | K11: =IF(B11="","",RTD("cqg.rtd", ,"ContractData",B11, "MT_LastAskVolume",, "T")) -> 200 | L11: =IF(B11="","",RTD("cqg.rtd", ,"ContractData",B11, "Open",, "T")) -> 455.59 | M11: =IF(B11="","",RTD("cqg.rtd", ,"ContractData",B11, "High",, "T")) -> 457.06 | N11: =IF(B11="","",RTD("cqg.rtd", ,"ContractData",B11, "Low",, "T")) -> 454.32 | O11: =IF(B11="","",RTD("cqg.rtd", ,"ContractData",B11, "T_CVol",, "T")) -> 3066430 | P11: News | Q11: https://finance.yahoo.com/quote/MSFT
B12: =Rank!F12 -> S.AMZN | C12: =IF(B12="","",RTD("cqg.rtd", ,"ContractData",B12, "LongDescription",, "T")) -> Amazon.com Inc | D12: =IF(B12="","",RTD("cqg.rtd", ,"ContractData", B12, "LastQuoteToday",, "T")) -> 204.03 | E12: =IF(B12="","",RTD("cqg.rtd", ,"ContractData",B12, "NetLastQuoteToday",, "T")) -> -2.13 | F12: =IFERROR(RTD("cqg.rtd", ,"ContractData",B12, "PerCentNetLastQuote",, "T")/100,"") -> -0.01033178114 | G12: =IFERROR(RTD("cqg.rtd", ,"ContractData",B12, "PerCentNetLastQuote",, "T")/100,"") -> -0.01033178114 | H12: =IF(B12="","",RTD("cqg.rtd", ,"ContractData",B12, "MT_LastBidVolume",, "T")) -> 100 | I12: =IF(B12="","",RTD("cqg.rtd", ,"ContractData", B12, "Bid",, "T")) -> 204 | J12: =IF(B12="","",RTD("cqg.rtd", ,"ContractData", B12, "Ask",, "T")) -> 204.03 | K12: =IF(B12="","",RTD("cqg.rtd", ,"ContractData",B12, "MT_LastAskVolume",, "T")) -> 200 | L12: =IF(B12="","",RTD("cqg.rtd", ,"ContractData",B12, "Open",, "T")) -> 204.62 | M12: =IF(B12="","",RTD("cqg.rtd", ,"ContractData",B12, "High",, "T")) -> 205.58 | N12: =IF(B12="","",RTD("cqg.rtd", ,"ContractData",B12, "Low",, "T")) -> 203.88 | O12: =IF(B12="","",RTD("cqg.rtd", ,"ContractData",B12, "T_CVol",, "T")) -> 5070601 | P12: News | Q12: https://finance.yahoo.com/quote/AMZN
B13: =Rank!F13 -> S.NVDA | C13: =IF(B13="","",RTD("cqg.rtd", ,"ContractData",B13, "LongDescription",, "T")) -> NVIDIA Corp | D13: =IF(B13="","",RTD("cqg.rtd", ,"ContractData", B13, "LastQuoteToday",, "T")) -> 133.11 | E13: =IF(B13="","",RTD("cqg.rtd", ,"ContractData",B13, "NetLastQuoteToday",, "T")) -> -2.46 | F13: =IFERROR(RTD("cqg.rtd", ,"ContractData",B13, "PerCentNetLastQuote",, "T")/100,"") -> -0.01814560744 | G13: =IFERROR(RTD("cqg.rtd", ,"ContractData",B13, "PerCentNetLastQuote",, "T")/100,"") -> -0.01814560744 | H13: =IF(B13="","",RTD("cqg.rtd", ,"ContractData",B13, "MT_LastBidVolume",, "T")) -> 700 | I13: =IF(B13="","",RTD("cqg.rtd", ,"ContractData", B13, "Bid",, "T")) -> 133.11 | J13: =IF(B13="","",RTD("cqg.rtd", ,"ContractData", B13, "Ask",, "T")) -> 133.12 | K13: =IF(B13="","",RTD("cqg.rtd", ,"ContractData",B13, "MT_LastAskVolume",, "T")) -> 400 | L13: =IF(B13="","",RTD("cqg.rtd", ,"ContractData",B13, "Open",, "T")) -> 134.29 | M13: =IF(B13="","",RTD("cqg.rtd", ,"ContractData",B13, "High",, "T")) -> 134.58 | N13: =IF(B13="","",RTD("cqg.rtd", ,"ContractData",B13, "Low",, "T")) -> 132.62 | O13: =IF(B13="","",RTD("cqg.rtd", ,"ContractData",B13, "T_CVol",, "T")) -> 40996993 | P13: News | Q13: https://finance.yahoo.com/quote/NVDA

Sheet Rank
A4: S.AAPL | B4: =IFERROR(RTD("cqg.rtd", ,"ContractData",A4, "PerCentNetLastTrade",, "T")/100,"") -> -0.003496503497 | C4: =IFERROR(RANK(B4,$B$4:$B$13,0)+COUNTIF($B$4:B4,B4)-1,"") -> 4 | D4: =A4 -> S.AAPL | E4: 1 | F4: =IFERROR(VLOOKUP(E4,$C$4:$D$13,2,FALSE),"") -> S.TSLA
A5: S.AMZN | B5: =IFERROR(RTD("cqg.rtd", ,"ContractData",A5, "PerCentNetLastTrade",, "T")/100,"") -> -0.01042879317 | C5: =IFERROR(RANK(B5,$B$4:$B$13,0)+COUNTIF($B$4:B5,B5)-1,"") -> 9 | D5: =A5 -> S.AMZN | E5: 2 | F5: =IFERROR(VLOOKUP(E5,$C$4:$D$13,2,FALSE),"") -> S.COST
A6: S.AVGO | B6: =IFERROR(RTD("cqg.rtd", ,"ContractData",A6, "PerCentNetLastTrade",, "T")/100,"") -> -0.00706759745 | C6: =IFERROR(RANK(B6,$B$4:$B$13,0)+COUNTIF($B$4:B6,B6)-1,"") -> 6 | D6: S.AVGO | E6: 3 | F6: S.GOOGL
A7: S.COST | B7: =IFERROR(RTD("cqg.rtd", ,"ContractData",A7, "PerCentNetLastTrade",, "T")/100,"") -> -0.001295512114 | C7: =IFERROR(RANK(B7,$B$4:$B$13,0)+COUNTIF($B$4:B7,B7)-1,"") -> 2 | D7: S.COST | E7: 4 | F7: S.AAPL
A8: S.GOOGL | B8: =IFERROR(RTD("cqg.rtd", ,"ContractData",A8, "PerCentNetLastTrade",, "T")/100,"") -> -0.003242464273 | C8: =IFERROR(RANK(B8,$B$4:$B$13,0)+COUNTIF($B$4:B8,B8)-1,"") -> 3 | D8: S.GOOGL | E8: 5 | F8: S.META
A9: S.META | B9: =IFERROR(RTD("cqg.rtd", ,"ContractData",A9, "PerCentNetLastTrade",, "T")/100,"") -> -0.005418234624 | C9: =IFERROR(RANK(B9,$B$4:$B$13,0)+COUNTIF($B$4:B9,B9)-1,"") -> 5 | D9: S.META | E9: 6 | F9: S.AVGO
A10: S.MSFT | B10: =IFERROR(RTD("cqg.rtd", ,"ContractData",A10, "PerCentNetLastTrade",, "T")/100,"") -> -0.008651687842 | C10: =IFERROR(RANK(B10,$B$4:$B$13,0)+COUNTIF($B$4:B10,B10)-1,"") -> 8 | D10: S.MSFT | E10: 7 | F10: S.NFLX
A11: S.NFLX | B11: =IFERROR(RTD("cqg.rtd", ,"ContractData",A11, "PerCentNetLastTrade",, "T")/100,"") -> -0.008475714142 | C11: =IFERROR(RANK(B11,$B$4:$B$13,0)+COUNTIF($B$4:B11,B11)-1,"") -> 7 | D11: S.NFLX | E11: 8 | F11: S.MSFT
A12: S.NVDA | B12: =IFERROR(RTD("cqg.rtd", ,"ContractData",A12, "PerCentNetLastTrade",, "T")/100,"") -> -0.01814560744 | C12: =IFERROR(RANK(B12,$B$4:$B$13,0)+COUNTIF($B$4:B12,B12)-1,"") -> 10 | D12: S.NVDA | E12: 9 | F12: S.AMZN
A13: S.TSLA | B13: =IFERROR(RTD("cqg.rtd", ,"ContractData",A13, "PerCentNetLastTrade",, "T")/100,"") -> 0.007629571165 | C13: =IFERROR(RANK(B13,$B$4:$B$13,0)+COUNTIF($B$4:B13,B13)-1,"") -> 1 | D13: S.TSLA | E13: 10 | F13: S.NVDA
